[Event "Czech Youth U12 Boys 2024"]
[Site "Kouty nad Desnou"]
[Date "2024.03.13"]
[Round "6.2"]
[White "Policar, Martin"]
[Black "Kala, Jakub"]
[Result "1-0"]
[ECO "A14"]
[WhiteElo "1758"]
[BlackElo "1750"]
[Annotator "NA RC"]
[PlyCount "65"]
[EventDate "2024.03.10"]
[EventType "swiss"]
[EventCountry "CZE"]
[SourceTitle "playchess.com"]
[Source "ChessBase"]
[SourceQuality "1"]
[TimeControl "40/5400+30:1800+30"]

1. c4 {[%emt 0:00:21]} e6 {[%emt 0:00:34]} 2. g3 {[%emt 0:00:07]} d5 {[%emt 0:00:23]} 3. Nf3 {[%emt 0:00:25]} Nf6 {[%emt 0:00:16]} 4. Bg2 {[%emt 0:00:48]} Be7 {[%emt 0:00:06]} 5. O-O {[%emt 0:00:10]} O-O {[%emt 0:00:04]} 6. Qc2 {[%emt 0:00:08]} b6 {[%emt 0:02:40]} 7. d4 {[%emt 0:02:55]} dxc4 {[%emt 0:04:00]} 8. Ng5 {[%emt 0:02:11]} h6 {[%emt 0:05:22]} 9. Bxa8 {[%emt 0:00:52]} hxg5 {[%emt 0:00:47]} 10. Bg2 {[%emt 0:00:53]} Qxd4 {[%emt 0:02:49]} 11. Bxg5 {[%emt 0:00:44]} Nd5 {[%emt 0:02:47]} 12. Bxe7 {[%emt 0:01:03]} Nxe7 {[%emt 0:00:14]} 13. Rd1 {[%emt 0:00:20]} Qe5 {[%emt 0:02:21]} 14. Na3 {[%emt 0:02:35]} b5 {[%emt 0:04:50]} 15. Rac1 {[%emt 0:26:23]} Nbc6 {[%emt 0:10:02]} 16. Qc3 {[%emt 0:07:23]} Ba6 {[%emt 0:12:06]} 17. Qxe5 {[%emt 0:05:04]} Nxe5 {[%emt 0:00:26]} 18. f4 {[%emt 0:01:27]} N5c6 {[%emt 0:06:38]} 19. Rd7 Nd5 {[%emt 0:09:05]} 20. Bxd5 {[%emt 0:05:35]} exd5 {[%emt 0:00:17]} 21. Rxc7 {[%emt 0:02:47]} Nd4 {[%emt 0:01:49]} 22. Kf2 {[%emt 0:02:25]} Re8 {[%emt 0:03:38]} 23. e3 {[%emt 0:00:33]} Nf5 {[%emt 0:03:42]} 24. Rxa7 {[%emt 0:02:21]} Re6 {[%emt 0:01:23]} 25. Nc2 {[%emt 0:01:20]} Nd6 {[%emt 0:04:27]} 26. Nb4 {[%emt 0:01:49]} Bb7 {[%emt 0:03:26]} 27. Rd1 {[%emt 0:01:57]} Rh6 {[%emt 0:04:44]} 28. h4 {[%emt 0:00:22]} Rg6 {[%emt 0:02:05]} 29. Nxd5 {[%emt 0:01:23]} Ne4+ {[%emt 0:04:13]} 30. Kf3 {[%emt 0:00:56]} Bxd5 {[%emt 0:01:53]} 31. Rxd5 {[%emt 0:00:16]} Re6 {[%emt 0:02:09]} 32. Ra8+ {[%emt 0:01:35]} Kh7 {[%emt 0:00:45]} 33. Rh5+ {[%emt 0:00:15]} 1-0

[Event "Czech Youth U12 Boys 2024"]
[Site "Kouty nad Desnou"]
[Date "2024.03.13"]
[Round "6.3"]
[White "Kroulik, Stepan"]
[Black "Velim, Vojtech"]
[Result "1-0"]
[ECO "A46"]
[WhiteElo "1683"]
[BlackElo "1889"]
[Annotator "NA RC"]
[PlyCount "77"]
[EventDate "2024.03.10"]
[EventType "swiss"]
[EventCountry "CZE"]
[SourceTitle "playchess.com"]
[Source "ChessBase"]
[SourceQuality "1"]
[TimeControl "40/5400+30:1800+30"]

1. d4 {[%emt 0:00:04]} Nf6 {[%emt 0:00:48]} 2. Nf3 {[%emt 0:00:15]} e6 {[%emt 0:00:09]} 3. Bg5 {[%emt 0:00:23]} c5 {[%emt 0:01:25]} 4. c3 {[%emt 0:00:26]} Be7 {[%emt 0:03:19]} 5. e3 {[%emt 0:00:23]} cxd4 {[%emt 0:02:52]} 6. cxd4 {[%emt 0:01:22] A46: 1 d4 Nf6 2 Nf3 e6: Torre, London and Colle Systems.} Qa5+ {[%emt 0:01:26]} 7. Nbd2 {[%emt 0:01:06]} Nc6 {[%emt 0:12:05]} 8. Be2 {[%emt 0:01:32]} d5 {[%emt 0:02:19]} 9. O-O {[%emt 0:01:49]} Qd8 {[%emt 0:05:52]} 10. Rc1 {[%emt 0:02:37]} Bd7 {[%emt 0:01:14]} 11. Re1 {[%emt 0:05:11]} h6 {[%emt 0:06:18]} 12. Bh4 {[%emt 0:00:56]} O-O {[%emt 0:01:24]} 13. a3 {[%emt 0:06:41]} Nh7 {[%emt 0:02:53]} 14. Bxe7 {[%emt 0:01:04]} Qxe7 {[%emt 0:00:23]} 15. Bb5 {[%emt 0:03:19]} Ng5 {[%emt 0:06:59]} 16. Nxg5 {[%emt 0:01:43]} Qxg5 {[%emt 0:00:14]} 17. Nf3 {[%emt 0:00:54]} Qe7 {[%emt 0:02:21]} 18. Bxc6 {[%emt 0:01:24]} bxc6 {[%emt 0:01:41]} (18... Bxc6 $11 {might be stronger.} 19. Rc3 Rfc8) 19. Rc5 {[%emt 0:03:28]} Rfb8 {[%emt 0:04:23]} 20. Qc2 {[%emt 0:02:26]} Rb5 {[%emt 0:01:09]} 21. Rc1 {[%emt 0:01:47]} f6 {[%emt 0:01:36]} 22. Rxb5 {[%emt 0:07:42]} cxb5 {[%emt 0:00:13]} 23. Qb3 {[%emt 0:01:45]} a5 {[%emt 0:01:59]} 24. Rc5 {[%emt 0:01:08]} b4 {[%emt 0:06:46]} 25. h3 {[%emt 0:01:26]} Qd6 {[%emt 0:04:23]} 26. axb4 {[%emt 0:04:57]} axb4 {[%emt 0:01:41]} 27. Qxb4 {[%emt 0:01:36]} Ra1+ {[%emt 0:01:10]} (27... Qb8 $11 {kam in Betracht.} 28. Qxb8+ Rxb8) 28. Ne1 {[%emt 0:00:14]} Qa6 {[%emt 0:00:58] [#]} (28... Be8 $142) 29. Qd2 {[%emt 0:01:45]} ({White should try} 29. Kh2 $1 Qe2 30. Nf3) 29... Ra2 {[%emt 0:07:11]} (29... h5 $142) 30. Kh2 {[%emt 0:01:35]} Qa4 {[%emt 0:08:05]} 31. Nd3 {[%emt 0:02:04]} Qb3 {[%emt 0:02:35]} 32. Rc2 {[%emt 0:03:26]} (32. Qc3 $142 Qxc3 33. Rxc3) 32... Ba4 {[%emt 0:01:54]} (32... Qb8+ $16 33. Kg1 Ba4) 33. Rc8+ {[%emt 0:02:07]} Kh7 {[%emt 0:00:11]} 34. Nc5 $1 {[%emt 0:03:09]} Qb5 $18 {[%emt 0:04:00]} 35. Nd3 {[%emt 0:11:41]} Qb7 {[%emt 0:01:55]} 36. Rc5 {[%emt 0:02:18]} Qb3 {[%emt 0:01:34]} 37. Ra5 {[%emt 0:04:50]} Bb5 {[%emt 0:02:43]} 38. Nc1 {[%emt 0:01:50]} Qc4 {[%emt 0:00:45]} 39. Nxa2 1-0

[Event "Czech Youth U12 Boys 2024"]
[Site "Kouty nad Desnou"]
[Date "2024.03.13"]
[Round "6.4"]
[White "Zrust, Lukas"]
[Black "Hladky, Mikulas"]
[Result "1/2-1/2"]
[ECO "A22"]
[WhiteElo "1893"]
[BlackElo "1798"]
[Annotator "NA RC"]
[PlyCount "103"]
[EventDate "2024.03.10"]
[EventType "swiss"]
[EventCountry "CZE"]
[SourceTitle "playchess.com"]
[Source "ChessBase"]
[SourceQuality "1"]
[TimeControl "40/5400+30:1800+30"]

1. c4 {[%emt 0:00:12]} e5 {[%emt 0:00:27]} 2. Nc3 {[%emt 0:00:45]} Nf6 {[%emt 0:00:31]} 3. g3 {[%emt 0:00:16]} c6 {[%emt 0:04:03]} 4. Bg2 {[%emt 0:02:40]} Be7 {[%emt 0:04:03]} 5. d3 {[%emt 0:03:33]} O-O {[%emt 0:01:47]} 6. Nf3 {[%emt 0:02:17]} d6 {[%emt 0:05:59]} 7. O-O {[%emt 0:02:36]} Bg4 {[%emt 0:02:04]} 8. h3 {[%emt 0:05:40]} Bxf3 {[%emt 0:03:12]} 9. Bxf3 {[%emt 0:10:26]} Na6 {[%emt 0:02:24]} 10. Rb1 {[%emt 0:02:10]} d5 {[%emt 0:00:18]} 11. cxd5 {[%emt 0:05:35]} cxd5 {[%emt 0:03:59]} 12. a3 {[%emt 0:07:46]} (12. Bg5 $1 $14 {was preferrable.}) 12... Nc7 {[%emt 0:02:18]} 13. b4 {[%emt 0:06:46]} (13. Bg5 $142) 13... Rc8 {[%emt 0:02:04]} 14. Bd2 {[%emt 0:03:55]} b6 {[%emt 0:05:52]} 15. Qa4 {[%emt 0:03:53]} a6 {[%emt 0:04:36]} 16. Bg2 {[%emt 0:05:02]} d4 {[%emt 0:08:55]} 17. Na2 {[%emt 0:01:17]} (17. Ne4 $5) 17... b5 {[%emt 0:02:22]} 18. Qb3 {[%emt 0:07:11]} Ne6 {[%emt 0:09:33]} 19. Rbc1 {[%emt 0:04:22]} Qd7 20. Rxc8 {[%emt 0:00:58]} Rxc8 {[%emt 0:00:44]} 21. Rc1 {[%emt 0:01:08]} Rxc1+ {[%emt 0:03:22]} 22. Nxc1 h6 {[%emt 0:00:18]} 23. Qc2 {[%emt 0:03:09]} Qc7 {[%emt 0:00:11]} 24. Qxc7 {[%emt 0:01:29]} Nxc7 {[%emt 0:02:51]} 25. e4 {[%emt 0:02:43]} ({Besser ist} 25. f4 $16) 25... Bd6 {[%emt 0:03:21]} (25... a5 $1 $11 {kam in Betracht.}) 26. Nb3 {[%emt 0:05:41]} Ne6 {[%emt 0:01:40]} 27. Kf1 {[%emt 0:02:51]} Kf8 {[%emt 0:02:43]} 28. Ke2 {[%emt 0:00:08]} Ke7 {[%emt 0:02:44]} 29. h4 {[%emt 0:01:56]} Ne8 {[%emt 0:07:59]} 30. Bh3 {[%emt 0:02:03]} N8c7 {[%emt 0:02:13]} 31. Bxe6 {[%emt 0:04:58]} Nxe6 {[%emt 0:00:24]} 32. Kf3 {[%emt 0:00:41]} Kf6 {[%emt 0:02:11]} 33. Kg4 {[%emt 0:01:09]} Ke7 {[%emt 0:02:26]} 34. f4 {[%emt 0:00:32]} f6 {[%emt 0:00:51]} 35. fxe5 {[%emt 0:00:41]} fxe5 {[%emt 0:01:01]} 36. Na5 $2 {[%emt 0:00:28]} ({White must play} 36. Kf5 $18) 36... Nd8 {[%emt 0:01:09]} 37. Kf5 {[%emt 0:00:19]} Kf7 {[%emt 0:00:31]} 38. h5 $18 {[%emt 0:00:09]} Bc7 {[%emt 0:01:52]} 39. Nb3 Bd6 {[%emt 0:01:34]} 40. Na5 {[%emt 0:01:18]} Bc7 {[%emt 0:00:14]} 41. Nb3 {[%emt 0:30:01]} Bd6 {[%emt 0:30:11]} 42. g4 {[%emt 0:01:23]} Nc6 {[%emt 0:00:53]} 43. g5 {[%emt 0:00:36]} Ne7+ {[%emt 0:01:22]} 44. Kg4 {[%emt 0:00:07]} hxg5 {[%emt 0:00:24]} 45. Bxg5 {[%emt 0:00:33]} Nc6 {[%emt 0:01:11]} 46. Bd2 {[%emt 0:01:03]} Kf6 {[%emt 0:00:35]} 47. Bg5+ {[%emt 0:00:08]} Kf7 {[%emt 0:00:08]} 48. Bd2 {[%emt 0:00:00]} Kf6 {[%emt 0:00:02]} 49. h6 {[%emt 0:00:42]} gxh6 {[%emt 0:00:08]} 50. Bxh6 {[%emt 0:00:05]} Ke6 {[%emt 0:01:05]} 51. Bg5 {[%emt 0:00:24]} Bf8 {[%emt 0:04:06]} 52. Bd2 1/2-1/2

[Event "Czech Youth U12 Boys 2024"]
[Site "Kouty nad Desnou"]
[Date "2024.03.13"]
[Round "6.5"]
[White "Kolar, Edvard"]
[Black "Sochor, Vaclav"]
[Result "1-0"]
[ECO "D05"]
[WhiteElo "1759"]
[BlackElo "1826"]
[Annotator "NA RC"]
[PlyCount "77"]
[EventDate "2024.03.10"]
[EventType "swiss"]
[EventCountry "CZE"]
[SourceTitle "playchess.com"]
[Source "ChessBase"]
[SourceQuality "1"]
[TimeControl "40/5400+30:1800+30"]

1. d4 {[%emt 0:00:02]} e6 {[%emt 0:03:03]} 2. Nf3 {[%emt 0:00:16]} d5 {[%emt 0:00:45]} 3. e3 {[%emt 0:00:26]} Nf6 {[%emt 0:01:07]} 4. Bd3 {[%emt 0:00:21]} c5 {[%emt 0:01:33]} 5. b3 {[%emt 0:00:12]} Nc6 {[%emt 0:01:39]} 6. a3 {[%emt 0:00:47]} Bd6 {[%emt 0:02:42]} 7. Bb2 {[%emt 0:00:36]} O-O {[%emt 0:01:25] D05: Colle System with ...e6.} 8. Nbd2 {[%emt 0:01:01]} Re8 {[%emt 0:02:47]} 9. Ne5 {[%emt 0:01:06]} Qc7 {[%emt 0:05:07]} 10. f4 {[%emt 0:02:20]} Nd7 {[%emt 0:06:18]} 11. Bxh7+ {[%emt 0:02:59]} Kf8 {[%emt 0:06:42]} 12. Bd3 {[%emt 0:11:16]} Nf6 {[%emt 0:02:03]} 13. O-O {[%emt 0:01:55]} cxd4 {[%emt 0:02:23]} 14. exd4 {[%emt 0:01:37]} Qb6 {[%emt 0:03:46]} 15. Ndf3 {[%emt 0:10:09]} Bd7 {[%emt 0:09:22]} 16. Nxc6 {[%emt 0:01:07]} Bxc6 {[%emt 0:00:54]} 17. Ne5 {[%emt 0:00:25]} Rac8 {[%emt 0:04:04]} 18. g4 {[%emt 0:02:58]} Nd7 {[%emt 0:01:56]} 19. Rf2 {[%emt 0:05:57]} a5 {[%emt 0:07:05]} 20. g5 {[%emt 0:03:12]} g6 $18 {[%emt 0:01:49]} (20... Ke7 {was worth a try.} 21. Qh5 f5 22. Nxc6+ Rxc6) 21. h4 {[%emt 0:11:51]} Kg7 {[%emt 0:03:45]} 22. h5 {[%emt 0:02:03]} Bxe5 {[%emt 0:08:30]} 23. fxe5 {[%emt 0:00:56]} Bb5 {[%emt 0:01:43]} 24. Qf1 {[%emt 0:10:34]} Bxd3 {[%emt 0:02:06]} 25. Rxf7+ {[%emt 0:00:11]} Kg8 {[%emt 0:00:16]} 26. cxd3 {[%emt 0:01:00]} Nxe5 {[%emt 0:00:54]} 27. Rf6 {[%emt 0:16:19]} Rc2 {[%emt 0:04:53]} 28. Qf4 {[%emt 0:05:28]} Qc7 {[%emt 0:04:00]} 29. dxe5 {[%emt 0:01:06]} Rxb2 {[%emt 0:07:42]} 30. Rxg6+ {[%emt 0:00:42]} Kh7 {[%emt 0:00:07]} 31. Qf6 {[%emt 0:00:53]} Qc5+ {[%emt 0:00:58]} 32. Kf1 {[%emt 0:02:02]} Rf2+ {[%emt 0:01:14]} 33. Qxf2 {[%emt 0:00:53]} Rf8 {[%emt 0:00:00]} 34. Rf6 {[%emt 0:00:33]} Rxf6 {[%emt 0:00:14]} 35. exf6 {[%emt 0:00:34]} Qc3 {[%emt 0:00:22]} 36. g6+ {[%emt 0:00:12]} Kh6 {[%emt 0:00:21]} 37. Rd1 {[%emt 0:01:30]} Qxb3 {[%emt 0:00:09]} 38. Qd2+ {[%emt 0:00:22]} Kxh5 {[%emt 0:00:16]} 39. g7 {[%emt 0:00:29]} 1-0

[Event "Czech Youth U12 Boys 2024"]
[Site "Kouty nad Desnou"]
[Date "2024.03.13"]
[Round "6.6"]
[White "Frantsev, Iegor"]
[Black "Bara, Jan"]
[Result "0-1"]
[ECO "B76"]
[WhiteElo "1721"]
[BlackElo "1852"]
[Annotator "NA RC"]
[PlyCount "164"]
[EventDate "2024.03.10"]
[EventType "swiss"]
[EventCountry "CZE"]
[SourceTitle "playchess.com"]
[Source "ChessBase"]
[SourceQuality "1"]
[TimeControl "40/5400+30:1800+30"]

1. e4 {[%emt 0:00:01]} c5 {[%emt 0:03:07]} 2. Nf3 {[%emt 0:00:08]} d6 {[%emt 0:00:14]} 3. d4 {[%emt 0:00:10]} cxd4 {[%emt 0:00:01]} 4. Nxd4 {[%emt 0:00:11]} Nf6 {[%emt 0:00:11]} 5. Nc3 {[%emt 0:00:14]} g6 {[%emt 0:00:09]} 6. Be3 {[%emt 0:00:08]} Bg7 {[%emt 0:00:09]} 7. f3 {[%emt 0:00:11]} O-O {[%emt 0:00:34]} 8. Qd2 {[%emt 0:00:23]} Nc6 {[%emt 0:00:16]} 9. O-O-O {[%emt 0:00:26]} d5 {[%emt 0:00:26]} 10. exd5 {[%emt 0:00:57]} Nxd5 {[%emt 0:00:16]} 11. Nxc6 {[%emt 0:00:08]} bxc6 {[%emt 0:00:11]} 12. Bd4 {[%emt 0:00:35]} Nf6 {[%emt 0:13:45] B76: Sicilian Dragon: Yugoslav Attack, 9 g4 and 9 0-0-0.} 13. g4 {[%emt 0:20:56]} Be6 {[%emt 0:15:30]} 14. h4 {[%emt 0:10:35]} Qa5 {[%emt 0:08:29]} 15. a3 {[%emt 0:21:38]} c5 {[%emt 0:05:29]} 16. Be5 {[%emt 0:15:05]} Rad8 {[%emt 0:04:02]} 17. Qh2 {[%emt 0:01:10]} Rxd1+ {[%emt 0:08:17]} 18. Nxd1 {[%emt 0:00:19]} c4 {[%emt 0:02:05]} (18... h5 $11 {scheint genauer.}) 19. Bc3 {[%emt 0:08:03]} Qb6 {[%emt 0:07:33]} 20. h5 {[%emt 0:02:51]} Bh6+ {[%emt 0:03:19]} 21. Bd2 {[%emt 0:02:49]} Bxd2+ {[%emt 0:07:02]} 22. Qxd2 {[%emt 0:00:06]} Rd8 {[%emt 0:01:00]} 23. Qh2 {[%emt 0:07:14]} (23. Qe1 $11) 23... Qd4 {[%emt 0:03:23]} 24. Bh3 {[%emt 0:02:03]} Nd5 {[%emt 0:05:16]} 25. hxg6 {[%emt 0:00:49]} hxg6 {[%emt 0:00:04]} 26. Bg2 {[%emt 0:02:23]} Qf4+ {[%emt 0:00:15]} 27. Qxf4 {[%emt 0:01:47]} Nxf4 {[%emt 0:00:01]} 28. Ne3 {[%emt 0:00:47]} c3 {[%emt 0:02:35]} 29. Bf1 {[%emt 0:01:49]} cxb2+ {[%emt 0:04:16]} 30. Kxb2 {[%emt 0:00:04]} Rb8+ {[%emt 0:00:23]} 31. Kc3 {[%emt 0:00:33]} Rc8+ {[%emt 0:01:05]} 32. Bc4 {[%emt 0:01:02]} Nd5+ {[%emt 0:01:05]} 33. Kd3 {[%emt 0:00:27]} Nxe3 {[%emt 0:01:08]} 34. Bxe6 {[%emt 0:00:12]} fxe6 {[%emt 0:00:07]} 35. Kxe3 {[%emt 0:00:12]} Rxc2 {[%emt 0:00:07]} 36. Ra1 {[%emt 0:00:44]} Kf7 {[%emt 0:01:07]} 37. Kf4 {[%emt 0:00:28]} Rc4+ {[%emt 0:00:27]} 38. Ke5 {[%emt 0:00:33]} Rc5+ {[%emt 0:00:16]} 39. Kf4 {[%emt 0:00:05]} Kf6 {[%emt 0:00:18]} 40. a4 {[%emt 0:01:29]} Rc4+ {[%emt 0:00:27]} 41. Ke3 {[%emt 0:30:12]} Ke5 {[%emt 0:30:45]} ({Vorzuziehen ist} 41... a5 $19 42. Kf2 Rc2+ 43. Ke3 Rc3+ 44. Kf2 Rc2+ 45. Ke3 Rc3+ 46. Kf2 e5) 42. Ra3 {[%emt 0:00:12]} Rb4 {[%emt 0:00:23]} 43. a5 {[%emt 0:00:55]} a6 {[%emt 0:00:13]} 44. Rc3 {[%emt 0:00:34]} Rb5 {[%emt 0:00:47]} 45. Ra3 {[%emt 0:00:25]} g5 {[%emt 0:01:22]} 46. Ra4 {[%emt 0:00:19]} Rb3+ {[%emt 0:00:09]} 47. Ke2 {[%emt 0:00:12]} Kd5 {[%emt 0:00:16]} 48. Kf2 {[%emt 0:00:20]} Rc3 {[%emt 0:02:11]} 49. Ke2 {[%emt 0:00:29]} (49. f4 $1 $11) 49... Rc4 $2 {[%emt 0:01:07]} (49... Rc5 $17 50. Ke3 e5) 50. Ra3 {[%emt 0:00:39]} e5 {[%emt 0:00:41]} 51. Rd3+ {[%emt 0:00:38] [#]} Rd4 $1 {[%emt 0:01:13]} 52. Ra3 $2 {[%emt 0:00:48]} (52. Rb3 $17 {was worth a try.}) 52... e4 {[%emt 0:00:43]} 53. Ke3 {[%emt 0:00:50]} exf3 {[%emt 0:00:31]} 54. Kxf3 {[%emt 0:00:06]} Rf4+ {[%emt 0:00:16]} 55. Kg3 {[%emt 0:00:16]} e5 {[%emt 0:00:27]} 56. Rd3+ {[%emt 0:00:20]} Rd4 {[%emt 0:00:16]} 57. Ra3 {[%emt 0:00:29]} Kc5 $2 {[%emt 0:01:01]} ({Vorzuziehen ist} 57... e4 $19 58. Ra1 Ke5) 58. Rf3 {[%emt 0:00:51]} Rf4 {[%emt 0:00:31]} 59. Re3 {[%emt 0:00:17]} e4 {[%emt 0:00:41]} 60. Rc3+ {[%emt 0:00:22]} Kb4 {[%emt 0:00:53]} 61. Rc1 {[%emt 0:00:23]} Rf3+ {[%emt 0:00:27]} 62. Kg2 {[%emt 0:00:06]} Rc3 {[%emt 0:00:14]} 63. Re1 {[%emt 0:01:18]} Rc4 {[%emt 0:00:44]} 64. Rd1 {[%emt 0:00:46]} Kc5 {[%emt 0:01:15]} 65. Rf1 $2 {[%emt 0:00:28]} (65. Kf2 $17 {war die einzige Verteidigung.}) 65... Kb4 {[%emt 0:00:40]} 66. Rd1 $19 {[%emt 0:00:19]} Kxa5 {[%emt 0:00:15]} 67. Rd5+ {[%emt 0:00:10]} Kb4 {[%emt 0:00:03]} 68. Rxg5 {[%emt 0:00:12]} a5 {[%emt 0:00:22]} 69. Rg8 {[%emt 0:00:15]} a4 {[%emt 0:00:15]} 70. Rb8+ {[%emt 0:00:20]} Kc3 {[%emt 0:00:14]} 71. Ra8 {[%emt 0:00:22]} Kd3 {[%emt 0:00:31]} 72. g5 {[%emt 0:00:45]} Ke2 {[%emt 0:01:13]} 73. g6 {[%emt 0:00:48]} Rc6 {[%emt 0:00:36]} 74. Rxa4 {[%emt 0:01:24]} Rxg6+ {[%emt 0:00:01]} 75. Kh2 {[%emt 0:00:17]} e3 {[%emt 0:00:16]} 76. Ra8 {[%emt 0:00:30]} Ke1 {[%emt 0:01:03]} 77. Rc8 {[%emt 0:00:37]} Rg5 {[%emt 0:00:37]} 78. Ra8 {[%emt 0:00:56]} e2 {[%emt 0:00:46]} 79. Kh3 {[%emt 0:00:07]} Kf2 {[%emt 0:00:44]} 80. Ra2 {[%emt 0:00:46]} Rg3+ {[%emt 0:00:33]} 81. Kh2 {[%emt 0:00:26]} Rg6 {[%emt 0:00:23]} 82. Kh3 {[%emt 0:00:18]} Kf1 {[%emt 0:00:16]} 0-1

[Event "Czech Youth U12 Boys 2024"]
[Site "Kouty nad Desnou"]
[Date "2024.03.13"]
[Round "6.7"]
[White "Sudrich, Radek"]
[Black "Sotek, Matej"]
[Result "1-0"]
[ECO "B15"]
[WhiteElo "1998"]
[BlackElo "1716"]
[Annotator "RC"]
[PlyCount "93"]
[EventDate "2024.03.10"]
[EventType "swiss"]
[EventCountry "CZE"]
[SourceTitle "playchess.com"]
[Source "ChessBase"]
[SourceQuality "1"]
[TimeControl "40/5400+30:1800+30"]

1. e4 {[%emt 0:00:38]} c6 {[%emt 0:00:17]} 2. d4 {[%emt 0:00:57]} d5 {[%emt 0:00:22]} 3. Nc3 {[%emt 0:02:14]} e6 {[%emt 0:02:04]} 4. Nf3 {[%emt 0:01:46]} Nf6 {[%emt 0:02:13]} 5. e5 {[%emt 0:02:26]} Nfd7 {[%emt 0:00:31]} 6. Bd3 {[%emt 0:01:41]} c5 {[%emt 0:01:47]} 7. Bf4 {[%emt 0:04:46]} a6 {[%emt 0:01:45]} 8. dxc5 {[%emt 0:04:01]} Bxc5 {[%emt 0:00:40]} 9. Ng5 {[%emt 0:00:52]} Qb6 {[%emt 0:00:40]} 10. O-O {[%emt 0:02:02]} Qxb2 {[%emt 0:05:05]} 11. Na4 {[%emt 0:00:17]} Qb4 {[%emt 0:00:28]} 12. Nxc5 {[%emt 0:00:08]} Nxc5 {[%emt 0:07:32]} 13. Bd2 {[%emt 0:01:05]} Qb6 {[%emt 0:02:10]} 14. Qf3 {[%emt 0:00:55]} Qc7 {[%emt 0:01:12]} 15. Rac1 {[%emt 0:00:34]} Nc6 {[%emt 0:02:04]} 16. Bf4 {[%emt 0:02:09]} Nxd3 {[%emt 0:01:46]} 17. cxd3 {[%emt 0:00:07]} h6 {[%emt 0:01:11]} 18. Qh3 {[%emt 0:03:13]} Qe7 {[%emt 0:01:25]} 19. Nf3 {[%emt 0:00:52]} Bd7 {[%emt 0:04:39]} 20. Qg3 {[%emt 0:01:44]} g5 {[%emt 0:03:10]} 21. Be3 {[%emt 0:00:12]} Qb4 {[%emt 0:04:04]} 22. Rb1 {[%emt 0:00:29]} Qa4 {[%emt 0:05:11]} 23. Rxb7 {[%emt 0:01:50]} g4 {[%emt 0:00:27]} 24. Nh4 {[%emt 0:00:39]} h5 {[%emt 0:01:20]} 25. f4 {[%emt 0:01:06]} Na5 {[%emt 0:02:51]} 26. Rc7 {[%emt 0:04:54]} d4 {[%emt 0:02:02]} 27. Bf2 {[%emt 0:02:29]} Nc6 {[%emt 0:01:49]} 28. Rc1 {[%emt 0:01:32]} Qb5 {[%emt 0:00:55]} 29. f5 {[%emt 0:02:55]} Qb6 {[%emt 0:01:07]} 30. fxe6 {[%emt 0:00:36]} fxe6 {[%emt 0:00:24]} 31. Ng6 {[%emt 0:02:05]} Rg8 {[%emt 0:03:25]} 32. R1xc6 {[%emt 0:01:36]} Bxc6 {[%emt 0:01:13]} 33. Re7+ {[%emt 0:00:10]} Kd8 {[%emt 0:00:23]} 34. Qh4 {[%emt 0:00:13]} Kc8 {[%emt 0:01:31]} 35. Rxe6 {[%emt 0:00:25]} Kb7 {[%emt 0:10:09]} 36. Qe7+ {[%emt 0:07:41]} Qc7 {[%emt 0:02:06]} 37. Qb4+ {[%emt 0:00:09]} Bb5 {[%emt 0:02:33]} 38. Re7 {[%emt 0:00:06]} Rxg6 {[%emt 0:00:07]} 39. Rxc7+ {[%emt 0:00:18]} Kxc7 {[%emt 0:00:05]} 40. Qe7+ {[%emt 0:00:23]} Bd7 {[%emt 0:00:41]} 41. Bxd4 {[%emt 0:30:51]} Re6 {[%emt 0:31:51]} 42. Qc5+ {[%emt 0:01:05]} Rc6 43. Qa5+ {[%emt 0:00:49]} Kb7 {[%emt 0:02:30]} 44. Be3 Re8 {[%emt 0:00:49]} 45. d4 {[%emt 0:01:03]} Rb6 {[%emt 0:04:21]} 46. Qd5+ {[%emt 0:02:06]} Rc6 {[%emt 0:01:08]} 47. Qxd7+ {[%emt 0:00:11]} 1-0